Cogmind - Beta 14 @@@ ROGUE MODE // 2025.03.05 @ 19:48:59 Player: w0rldd3str0y3r Result: Destroyed by S-27 Virus with Autogun Performance ------------- Evolutions (4) 2000 Regions Visited (13) 2600 Robots Destroyed (117) 585 Value Destroyed (3911) 3911 Prototype IDs (23) 460 Alien Tech Used (0) 0 Bonus (792) 792 TOTAL SCORE: 10348 Bonus ------- High Alert Combat Kills 389 Follower Combat Kills 261 Met Data Miner 300 Friendly Fire -158 Cogmind --------- Core Integrity 0/850 Matter 0/300 Energy 98/100 System Corruption 18% Temperature Cool (0) Movement Core (50) Location -6/Lower Caves Parts ------- > --- POWER (1) -------- (None) > --- PROPULSION (4) --- (None) > --- UTILITY (7) ------ (None) > --- WEAPON (3) ------- (None) > --- INVENTORY (5) ---- Nuclear Pulse Thruster Structural Scanner Lightning Gun Missile Launcher Remote Datajack Peak State ------------ > --- POWER ------------ Micro Nuclear Core > --- PROPULSION ------- Advanced Treads Medium Treads Improved Medium Treads Enhanced Flexi-carbon Leg > --- UTILITY ---------- Improved Heat Sink Huge Storage Unit Transport Network Coupler Improved Targeting Computer Improved Targeting Computer Weapon Cycler Layered Medium Armor Plating > --- WEAPON ----------- Mini Grenade Launcher Missile Launcher Heavy Missile Launcher > --- INVENTORY -------- Makeshift Power Source Light Angular Momentum Engine Carbon-fiber Leg Nuclear Pulse Thruster Coolant Injector Huge Storage Unit Medium Battery Structural Scanner Core Analyzer Dynamic Insulation System Drone Bay Lightning Gun EM Pulse Cannon Plasma Cannon Heavy Ion Cannon Heavy Ion Cannon Improved Assault Rifle Makeshift Shrapnel Gun Advanced Assault Cannon Magnetic Acceleration Cannon Remote Datajack Katana Katana [Rating: 58] Favorites ----------- Power Reinforced Ion Engine Engine Reinforced Ion Engine Power Core Light Nuclear Core Propulsion Armored Wheel Treads Light Treads Leg Titanium Leg Wheel Armored Wheel Hover Unit Hover Unit Flight Unit Flight Unit Utility Improved Targeting Computer Device Improved Heat Sink Storage Huge Storage Unit Processor Improved Targeting Computer Protection Hardened Medium Armor Plating Weapon Improved EM Shotgun Energy Gun Improved EM Shotgun Energy Cannon Light EM Pulse Cannon Ballistic Gun Improved Assault Rifle Ballistic Cannon Magnetic Acceleration Cannon Launcher Mini Grenade Launcher Slashing Weapon Katana Build | -11 -10 -10 -9 -8 -7 -7 -7 -7 -6 -6 -6 -6 -6 ------- Run | Yrd Mat Min Mat Mat Fac Low Low Dat Pro Fac Was Fac Low Slots Evolved 8 | . . . 2 2 2 . . . . 2 . . . Power . | . . . . . . . . . . . . . . Propulsion 2 | . . . 1 . . . . . . 1 . . . Utility 5 | . . . 1 2 2 . . . . . . . . Weapon 1 | . . . . . . . . . . 1 . . . Parts Attached 145 | 1 7 6 27 17 48 13 2 . 13 7 4 . . Power 14 | . . 2 3 . 5 2 . . 2 . . . . Engine 10 | . . 2 1 . 5 2 . . . . . . . Core 4 | . . . 2 . . . . . 2 . . . . Reactor . | . . . . . . . . . . . . . . Propulsion 33 | . 3 3 11 . 7 3 . . 2 3 1 . . Treads 4 | . 1 . . . . . . . . 3 . . . Leg 9 | . 2 . 5 . . . . . 1 . 1 . . Wheel 14 | . . . 3 . 7 3 . . 1 . . . . Hover 1 | . . . 1 . . . . . . . . . . Flight 5 | . . 3 2 . . . . . . . . . . Utility 41 | . 2 . 4 10 16 3 . . 4 1 1 . . Device 22 | . 1 . . 4 11 2 . . 3 . 1 . . Storage 4 | . . . 3 . 1 . . . . . . . . Processor 6 | . 1 . 1 . 2 1 . . . 1 . . . Hackware . | . . . . . . . . . . . . . . Protection 9 | . . . . 6 2 . . . 1 . . . . Artifact . | . . . . . . . . . . . . . . Weapon 57 | 1 2 1 9 7 20 5 2 . 5 3 2 . . Energy Gun 23 | 1 1 1 3 5 9 2 . . 1 . . . . Energy Cannon 14 | . . . 5 1 4 1 1 . 2 . . . . Ballistic Gun 9 | . 1 . 1 . 3 2 . . 2 . . . . Ballistic Cannon 1 | . . . . . . . . . . 1 . . . Launcher 8 | . . . . 1 3 . 1 . . 1 2 . . Special Weapon . | . . . . . . . . . . . . . . Impact Weapon . | . . . . . . . . . . . . . . Slashing Weapon 2 | . . . . . 1 . . . . 1 . . . Piercing Weapon . | . . . . . . . . . . . . . . Special Melee Weapon . | . . . . . . . . . . . . . . Unidentified Prototypes 4 | . . . 1 1 1 . . . . . 1 . . Corrupted Parts 2 | . . . . 1 1 . . . . . . . . System Corruption 7 | . . . . 2 5 . . . . . . . . Parts Lost 39 | . . . 5 4 13 6 . . 6 1 4 . . Power 5 | . . . . . 1 1 . . 2 . 1 . . Propulsion 11 | . . . 2 . 4 1 . . 2 1 1 . . Utility 11 | . . . 1 1 5 2 . . 1 . 1 . . Weapon 12 | . . . 2 3 3 2 . . 1 . 1 . . Highest Loss Streak 5 | . . . 2 2 5 2 . . 3 1 4 . . To Critical Strikes . | . . . . . . . . . . . . . . Average Slot Usage (%) 90 | . 48 83 98 96 98 95 100 100 98 98 55 . . Engine 4 | . . 7 2 9 6 6 7 7 . . . . . Core 3 | . . . 8 . . . . . 6 6 3 . . Treads 1 | . 13 5 . . . . . . . 6 11 . . Leg 6 | . 5 5 19 . . . . . 1 6 3 . . Wheel 15 | . . . 10 27 22 22 23 23 20 11 . . . Flight 1 | . . 15 2 . . . . . . . . . . Device 12 | . 12 14 1 9 23 21 23 23 17 13 7 . . Storage 6 | . . . 9 9 7 7 7 7 7 6 3 . . Processor 17 | . 2 14 22 18 15 20 23 23 23 20 11 . . Protection 2 | . . . . 8 5 . . . 4 6 3 . . Energy Gun 8 | . 10 18 16 2 7 7 3 . 1 . . . . Energy Cannon 4 | . . . 5 12 2 . 7 7 11 6 . . . Ballistic Gun 1 | . 3 . . . 2 5 . . 1 . . . . Peak Build Rating 58 | 1 5 7 26 26 41 37 35 34 44 54 58 1 1 Average Rating 26 | . 3 5 22 24 37 33 34 34 39 49 30 1 1 On Entrance 21 | . 1 5 7 21 26 37 35 34 34 44 54 1 1 Naked Turns 418 | . . . . . . . . . . . 94 300 24 Heaviest Build 116 | 2 3 8 98 102 116 102 102 99 111 113 110 . . Greatest Support 80 | 3 20 20 51 36 44 44 34 34 34 80 80 3 3 Greatest Overweight (x) 10 | . . . 2 2 6 4 2 2 5 10 1 . . Average Overweight (x) 1 | . . . . 2 2 2 2 2 3 5 . . . Largest Inventory Capacity 25 | 5 5 5 25 25 25 25 25 25 25 25 25 5 5 Average Capacity 20 | 5 5 5 18 25 25 25 25 25 25 25 16 5 5 Most Carried 25 | 4 4 5 25 25 25 25 25 25 25 23 23 5 5 Average Carried 18 | 2 3 4 15 24 24 20 24 25 23 21 14 5 5 Final Capacity 25 | 5 5 5 25 25 25 25 25 25 25 25 5 5 5 Final Carried 25 | 4 4 5 25 25 24 24 25 25 23 22 5 5 5 Class Distribution -------------------- 68% | Mutant 15% | Scavenger-Mutant 11% | Scavenger-Skirmisher Dominant Class ---------------- Mutant | -10/Materials Scavenger-Mutant | -10/Mines Mutant | -9/Materials Mutant | -8/Materials Mutant | -7/Factory Scavenger-Skirmisher | -7/Lower Caves Scavenger-Skirmisher | -7/Lower Caves Scavenger-Skirmisher | -7/Data Miner Scavenger-Mutant | -6/Proximity Caves Scavenger-Mutant | -6/Factory Gunner | -6/Waste Mutant | -6/Factory Mutant | -6/Lower Caves Resources | -11 -10 -10 -9 -8 -7 -7 -7 -7 -6 -6 -6 -6 -6 ----------- Run | Yrd Mat Min Mat Mat Fac Low Low Dat Pro Fac Was Fac Low Matter Collected 2298 | 210 126 61 313 165 710 251 81 . 131 6 233 11 . Remotely . | . . . . . . . . . . . . . . Salvage Created 4893 | . 126 31 1579 600 1148 222 260 . 175 134 618 . . Parts 230 | . 6 6 79 38 74 13 7 . 4 2 1 . . Haulers Intercepted 5 | . . . 4 1 . . . . . . . . . Recyclers Shooed 2 | . . . 1 . 1 . . . . . . . . Parts Field Recycled . | . . . . . . . . . . . . . . Retrieved Matter . | . . . . . . . . . . . . . . Parts Self-Destructed 28 | . . . . . . 10 6 . 12 . . . . Prevented 2 | . . . . . . 2 . . . . . . . Kills | -11 -10 -10 -9 -8 -7 -7 -7 -7 -6 -6 -6 -6 -6 ------- Run | Yrd Mat Min Mat Mat Fac Low Low Dat Pro Fac Was Fac Low Combat Hostiles Destroyed 86 | . 1 2 24 11 26 8 5 . 3 3 3 . . Melee 1 | . . . . . 1 . . . . . . . . Guns 25 | . 1 2 11 . 6 5 . . . . . . . Cannons 18 | . . . 2 5 3 2 1 . 3 2 . . . AOE 34 | . . . 10 3 13 1 3 . . 1 3 . . Classes Destroyed 15 | . 3 1 7 1 1 . . . 1 . 1 . . Worker 6 | . . . 2 . 4 . . . . . . . . Builder 5 | . 1 . 1 . 3 . . . . . . . . Hauler 5 | . . . 4 1 . . . . . . . . . Recycler 3 | . . . 2 . 1 . . . . . . . . Operator 2 | . . . 1 . 1 . . . . . . . . Watcher 10 | . 2 . 3 2 3 . . . . . . . . Swarmer 22 | . . 2 6 3 4 7 . . . . . . . Grunt 32 | . 1 . 10 1 12 . 4 . 2 2 . . . Brawler 1 | . . . 1 . . . . . . . . . . Duelist 3 | . . . 2 . 1 . . . . . . . . Sentry 16 | . . . 5 6 3 1 . . . 1 . . . Hunter 5 | . . . . 1 3 . 1 . . . . . . Programmer 3 | . . . . . 3 . . . . . . . . Behemoth 1 | . . . . . . . . . 1 . . . . Compactor 3 | . . . . . . . . . . . 3 . . Best Kill Streak 8 | . 1 2 8 6 7 4 4 . 2 2 3 . . Combat Bots Only 7 | . 1 2 7 5 6 4 4 . 2 2 3 . . Max Kills in Single Turn 3 | . 1 2 3 3 3 1 2 . 1 1 1 . . Gunslinging 1 | . . 1 . . . . . . . . . . . Exploded 3 | . . . 3 3 2 1 2 . . 1 1 . . Melee 1 | . . . . . 1 . . . . . . . . Uniques/NPCs Destroyed . | . . . . . . . . . . . . . . Combat | -11 -10 -10 -9 -8 -7 -7 -7 -7 -6 -6 -6 -6 -6 -------- Run | Yrd Mat Min Mat Mat Fac Low Low Dat Pro Fac Was Fac Low Hostile Shots Fired 829 | . 17 6 146 54 278 89 16 . 43 62 3 106 9 Missed 344 | . 7 1 60 22 108 37 7 . 15 26 . 60 1 Damage Taken 6564 | . 118 39 1140 633 1919 560 142 . 638 312 281 669 113 Core 1922 | . 34 . 275 158 342 100 30 . 116 5 80 669 113 Absorbed by Shields 263 | . . . . . 212 51 . . . . . . . Core Remaining (%) 60 | 100 . 86 31 71 . . . . 16 . . . . Volleys Fired 281 | . 33 1 78 35 73 17 12 . 13 9 10 . . Largest 3 | . 2 2 2 2 2 2 2 . 2 2 3 . . Hottest 145 | . 60 80 120 112 130 110 135 . 145 133 105 . . Shots Fired 498 | . 35 2 152 70 123 31 13 . 26 18 28 . . Gun 280 | . 35 2 121 12 77 27 3 . 3 . . . . Cannon 165 | . . . 31 57 26 4 8 . 23 16 . . . Launcher 53 | . . . . 1 20 . 2 . . 2 28 . . Special . | . . . . . . . . . . . . . . Kinetic 55 | . 20 . . . 10 12 1 . 3 9 . . . Thermal 83 | . . . 19 . 26 . 8 . 23 7 . . . Explosive 53 | . . . . 1 20 . 2 . . 2 28 . . Electromagnetic 307 | . 15 2 133 69 67 19 2 . . . . . . Robot Hit Streak 20 | . 8 3 12 20 12 12 5 . 15 13 16 . . Robot Miss Streak 5 | . 2 . 5 4 5 4 2 . 2 3 2 . . Penetration Max . | . . . . . . . . . . . . . . Secondary Targets 5 | . . 1 2 . 1 1 . . . . . . . Max Gunslinging Chain 1 | . . 1 1 . 1 1 . . . . . . . Shots Hit Robots 357 | . 22 2 105 51 90 22 7 . 22 11 25 . . Core Hits 218 | . 5 2 58 19 76 25 11 . 6 7 9 . . Critical Kills 2 | . . . . . 1 . 1 . . . . . . Critical Parts Destroyed 2 | . 1 . . . . . . . 1 . . . . Critical Strikes 5 | . 1 . 1 . 1 . 1 . 1 . . . . Meltdown 2 | . . . . . 1 . 1 . . . . . . Destroy 2 | . 1 . . . . . . . 1 . . . . Corrupt 1 | . . . 1 . . . . . . . . . . Melee Attacks 21 | . . . . . 16 . . . . 5 . . . Impact . | . . . . . . . . . . . . . . Slashing 21 | . . . . . 16 . . . . 5 . . . Piercing . | . . . . . . . . . . . . . . Sneak Attacks . | . . . . . . . . . . . . . . Combat Hostiles . | . . . . . . . . . . . . . . Follow-up Attacks . | . . . . . . . . . . . . . . Damage Inflicted 13048 | . 378 22 2367 1282 3973 382 430 . 594 715 2905 . . Guns 3309 | . 361 22 1364 124 1076 288 15 . 59 . . . . Cannons 2915 | . . . 385 932 476 56 154 . 535 377 . . . Explosions 6678 | . . . 615 226 2295 38 261 . . 338 2905 . . Melee 126 | . . . . . 126 . . . . . . . . Ramming 20 | . 17 . 3 . . . . . . . . . . Kinetic 814 | . 197 . . . 139 155 15 . 59 249 . . . Thermal 2672 | . . . 771 99 832 38 154 . 535 243 . . . Explosive 5455 | . . . . 127 1939 . 261 . . 223 2905 . . Electromagnetic 3961 | . 164 22 1593 1056 937 189 . . . . . . . Impact . | . . . . . . . . . . . . . . Slashing 126 | . . . . . 126 . . . . . . . . Piercing . | . . . . . . . . . . . . . . Highest Corruption 18 | . . . . 2 6 6 6 6 6 . 18 18 18 Average Corruption 6 | . . . . 2 5 6 6 6 6 . 9 18 18 Corruption Purged . | . . . . . . . . . . . . . . Corruption Blocked . | . . . . . . . . . . . . . . Effects 93 | . . . . . 29 16 13 1 10 . 8 15 1 Message Errors 21 | . . . . . 6 2 5 . . . 1 7 . Matter Fused 23 | . . . . . 6 7 3 1 2 . 2 2 . Heat Flow Errors 9 | . . . . . 4 1 . . 2 . 1 1 . Energy Discharges 12 | . . . . . 2 3 2 . 4 . . 1 . Parts Rejected 2 | . . . . . 1 1 . . . . . . . Data Loss (minor) 8 | . . . . . 1 1 1 . 1 . 2 2 . Data Loss (major) 4 | . . . . . 2 . . . 1 . . 1 . Misfires 6 | . . . . . 4 1 . . . . 1 . . Alerts 2 | . . . . . 2 . . . . . . . . Misdirections 3 | . . . . . . . . . . . 1 1 1 Weapon Failures 3 | . . . . . 1 . 2 . . . . . . Overload Shots . | . . . . . . . . . . . . . . Overflow Damage 45 | . . . 29 3 13 . . . . . . . . Projectiles 8 | . . . 7 1 . . . . . . . . . Explosions 37 | . . . 22 2 13 . . . . . . . . Melee . | . . . . . . . . . . . . . . Knockbacks . | . . . . . . . . . . . . . . Impact . | . . . . . . . . . . . . . . Kinetic . | . . . . . . . . . . . . . . Secondary . | . . . . . . . . . . . . . . Self-Inflicted Damage 437 | . 8 . 87 . 174 . . . . . 168 . . Shots 19 | . . . 5 . 6 . . . . . 8 . . Rammed 2 | . 1 1 . . . . . . . . . . . Targets Rammed 4 | . 1 1 2 . . . . . . . . . . Kicked 2 | . . . 2 . . . . . . . . . . Crushed . | . . . . . . . . . . . . . . Highest Temperature 496 | . 15 26 378 96 496 189 12 . 279 69 133 84 . Average Temperature 70 | . 12 16 82 23 76 43 7 . 120 34 62 47 . Received Heat Transfer 1577 | . 60 . 381 108 494 36 63 . 138 99 . 198 . Effects 4 | . . . 1 . 2 . . . 1 . . . . Energy Bleed 1 | . . . . . 1 . . . . . . . . Interference 1 | . . . . . . . . . 1 . . . . Matter Decay 2 | . . . 1 . 1 . . . . . . . . Siege Activations . | . . . . . . . . . . . . . . Robots Corrupted 7 | . . . 2 3 2 . . . . . . . . Combat Hostiles 6 | . . . 1 3 2 . . . . . . . . Parts Fried 31 | . 3 . 11 11 5 1 . . . . . . . Impact Corruptions . | . . . . . . . . . . . . . . Robots Melted 2 | . . . . . 1 . 1 . . . . . . Combat Hostiles 2 | . . . . . 1 . 1 . . . . . . Parts Melted 9 | . . . 1 . 2 . 4 . 1 1 . . . Heat Transferred 3508 | . . . 933 100 942 50 300 . 833 350 . . . Parts Sabotaged . | . . . . . . . . . . . . . . Parts Stolen . | . . . . . . . . . . . . . . Parts Stripped . | . . . . . . . . . . . . . . Power Chain Reactions 15 | . . . 9 2 3 1 . . . . . . . Alert | -11 -10 -10 -9 -8 -7 -7 -7 -7 -6 -6 -6 -6 -6 ------- Run | Yrd Mat Min Mat Mat Fac Low Low Dat Pro Fac Was Fac Low Peak Influence 856 | . 200 207 468 427 856 . . . . 420 182 249 . Initial 189 | . . . 2 189 126 . . . . 63 147 99 . Average 324 | . 68 61 353 286 497 . . . . 171 152 156 . Maximum Alert Level 3 | . 1 1 2 2 3 . . . . 2 . 1 . Low Security (%) 31 | 100 99 93 6 25 13 . . . . 77 100 66 . Level 1 32 | . . 6 54 67 10 . . . . 1 . 33 . Level 2 29 | . . . 38 6 54 . . . . 20 . . . Level 3 6 | . . . . . 21 . . . . . . . . Level 4 . | . . . . . . . . . . . . . . Level 5 . | . . . . . . . . . . . . . . High Security . | . . . . . . . . . . . . . . Max Security . | . . . . . . . . . . . . . . Squads Dispatched 19 | . 2 . 3 1 9 . . . . 2 . 2 . Investigation 3 | . . . 2 . 1 . . . . . . . . Extermination 4 | . . . . . 3 . . . . 1 . . . Reinforcement 12 | . 2 . 1 1 5 . . . . 1 . 2 . Assault . | . . . . . . . . . . . . . . Garrison . | . . . . . . . . . . . . . . Intercept . | . . . . . . . . . . . . . . Searches Triggered 2 | . . . . . 2 . . . . . . . . Construction Impeded 3 | . . . . . 2 . . . . 1 . . . Haulers Reinforced . | . . . . . . . . . . . . . . Active Scanning Responses . | . . . . . . . . . . . . . . Cargo Convoy Interrupts . | . . . . . . . . . . . . . . Stealth | -11 -10 -10 -9 -8 -7 -7 -7 -7 -6 -6 -6 -6 -6 --------- Run | Yrd Mat Min Mat Mat Fac Low Low Dat Pro Fac Was Fac Low Distress Signals 2 | . . . 1 1 . . . . . . . . . Communications Jammed 3 | . . . . . 3 . . . . . . . . Distress Signals 1 | . . . . . 1 . . . . . . . . Times Spotted 166 | . 12 7 40 15 37 9 5 . 7 6 6 16 6 Peak Tracking Total 9 | . 5 3 9 4 5 4 4 . 4 3 3 9 7 Tactical Retreats 13 | . . 1 5 3 1 1 . . . . . 2 . Traps | -11 -10 -10 -9 -8 -7 -7 -7 -7 -6 -6 -6 -6 -6 ------- Run | Yrd Mat Min Mat Mat Fac Low Low Dat Pro Fac Was Fac Low Traps Triggered 3 | . 1 . . . 1 . . . . 1 . . . Indirectly . | . . . . . . . . . . . . . . Trap Hack Attempts . | . . . . . . . . . . . . . . Triggered . | . . . . . . . . . . . . . . Disarmed . | . . . . . . . . . . . . . . Reprogrammed . | . . . . . . . . . . . . . . Reused . | . . . . . . . . . . . . . . Traps Extracted . | . . . . . . . . . . . . . . Installed . | . . . . . . . . . . . . . . Triggered 2 | . 1 . . . 1 . . . . . . . . Machines | -11 -10 -10 -9 -8 -7 -7 -7 -7 -6 -6 -6 -6 -6 ---------- Run | Yrd Mat Min Mat Mat Fac Low Low Dat Pro Fac Was Fac Low Machines Disabled 20 | . 1 1 6 . 6 . . . . 6 . . . Max in Single Turn 6 | . 1 . 2 . 2 . . . . 6 . . . Machines Repaired . | . . . . . . . . . . . . . . Machines Dismantled . | . . . . . . . . . . . . . . Machines Sabotaged . | . . . . . . . . . . . . . . Overloaded Fab Kills . | . . . . . . . . . . . . . . Hacking | -11 -10 -10 -9 -8 -7 -7 -7 -7 -6 -6 -6 -6 -6 --------- Run | Yrd Mat Min Mat Mat Fac Low Low Dat Pro Fac Was Fac Low Machines Accessed 30 | . 2 . 13 2 6 . . 4 . . . 3 . Terminals 18 | . 2 . 10 2 3 . . . . . . 1 . Fabricators 1 | . . . . . . . . . . . . 1 . Repair Stations 2 | . . . . . 1 . . . . . . 1 . Recycling Units 1 | . . . 1 . . . . . . . . . . Scanalyzers 3 | . . . 2 . 1 . . . . . . . . Garrison Access 1 | . . . . . 1 . . . . . . . . Total Hacks 79 | . 5 . 26 3 9 . . 31 . . . 5 . Successful 54 | . 2 . 15 1 5 . . 31 . . . . . Failed 25 | . 3 . 11 2 4 . . . . . . 5 . Catastrophic 5 | . 1 . 1 1 1 . . . . . . 1 . Database Lockouts . | . . . . . . . . . . . . . . Manual 11 | . 3 . 4 2 . . . . . . . 2 . Terminals 32 | . 5 . 18 3 4 . . . . . . 2 . Fabricators 1 | . . . . . . . . . . . . 1 . Repair Stations 3 | . . . . . 1 . . . . . . 2 . Recycling Units 1 | . . . 1 . . . . . . . . . . Scanalyzers 9 | . . . 7 . 2 . . . . . . . . Garrison Access 2 | . . . . . 2 . . . . . . . . Terminal Hacks 45 | . 2 . 8 1 3 . . 31 . . . . . Record 8 | . . . . . . . . 8 . . . . . Part Schematic 13 | . . . . . . . . 13 . . . . . Robot Schematic 7 | . . . . . . . . 7 . . . . . Prototype ID Bank 8 | . 1 . 4 . . . . 3 . . . . . Terminal Index 1 | . . . 1 . . . . . . . . . . Zone Layout 8 | . 1 . 3 1 3 . . . . . . . . Fabricator Hacks . | . . . . . . . . . . . . . . Repair Station Hacks . | . . . . . . . . . . . . . . Recycling Unit Hacks 1 | . . . 1 . . . . . . . . . . Report Inventory 1 | . . . 1 . . . . . . . . . . Scanalyzer 7 | . . . 5 . 2 . . . . . . . . Insert Component 4 | . . . 3 . 1 . . . . . . . . Analyze 3 | . . . 2 . 1 . . . . . . . . Garrison Access Hacks . | . . . . . . . . . . . . . . Unauthorized Hacks 1 | . . . 1 . . . . . . . . . . Terminals . | . . . . . . . . . . . . . . Fabricators . | . . . . . . . . . . . . . . Repair Stations . | . . . . . . . . . . . . . . Recycling Units . | . . . . . . . . . . . . . . Scanalyzers 1 | . . . 1 . . . . . . . . . . Extract 1 | . . . 1 . . . . . . . . . . Garrison Access . | . . . . . . . . . . . . . . Data Cores Recovered . | . . . . . . . . . . . . . . Used . | . . . . . . . . . . . . . . Hacking Detections 14 | . . . 8 2 3 . . . . . . 1 . Full Trace Events 2 | . . . 1 . 1 . . . . . . . . Feedback Events . | . . . . . . . . . . . . . . Feedback Blocked . | . . . . . . . . . . . . . . Robot Schematics Acquired 7 | . . . . . . . . 7 . . . . . Robots Built . | . . . . . . . . . . . . . . Authchips . | . . . . . . . . . . . . . . Time . | . . . . . . . . . . . . . . Total Robot Build Rating . | . . . . . . . . . . . . . . Part Schematics Acquired 18 | . . . 4 . 1 . . 13 . . . . . Parts Built . | . . . . . . . . . . . . . . Authchips . | . . . . . . . . . . . . . . Time . | . . . . . . . . . . . . . . Total Part Build Rating . | . . . . . . . . . . . . . . Parts Repaired . | . . . . . . . . . . . . . . Time . | . . . . . . . . . . . . . . Parts Recycled . | . . . . . . . . . . . . . . Recycled Matter . | . . . . . . . . . . . . . . Retrieved Matter . | . . . . . . . . . . . . . . Retrieved Components . | . . . . . . . . . . . . . . Parts Scanalyzed 4 | . . . 3 . 1 . . . . . . . . Part Schematics Acquired 3 | . . . 2 . 1 . . . . . . . . Parts Damaged . | . . . . . . . . . . . . . . Bothacking | -11 -10 -10 -9 -8 -7 -7 -7 -7 -6 -6 -6 -6 -6 ------------ Run | Yrd Mat Min Mat Mat Fac Low Low Dat Pro Fac Was Fac Low Used RIF Installer . | . . . . . . . . . . . . . . Robots Hacked . | . . . . . . . . . . . . . . Non-combat . | . . . . . . . . . . . . . . Combat . | . . . . . . . . . . . . . . Robot Hacks Applied . | . . . . . . . . . . . . . . Relay Couplers Released . | . . . . . . . . . . . . . . Fabnet Peak Effective % . | . . . . . . . . . . . . . . Robots Rewired . | . . . . . . . . . . . . . . Allies Hacked . | . . . . . . . . . . . . . . Hacks Repelled . | . . . . . . . . . . . . . . Allies | -11 -10 -10 -9 -8 -7 -7 -7 -7 -6 -6 -6 -6 -6 -------- Run | Yrd Mat Min Mat Mat Fac Low Low Dat Pro Fac Was Fac Low Total Allies 4 | . . 3 . . . . . . 1 . . . . Largest Group 3 | . . 3 2 . . . . . 1 1 1 . . Highest-Rated Group 96 | . . 73 42 . . . . . 96 91 91 . . Highest-Rated Ally 96 | . . 31 31 . . . . . 96 91 91 . . Total Orders . | . . . . . . . . . . . . . . Ally Attacks 44 | . . 13 2 . . . . . 18 10 1 . . Total Damage 1276 | . . 83 22 . . . . . 803 320 48 . . Kills 11 | . . 4 . . . . . . 4 3 . . . Allies Corrupted . | . . . . . . . . . . . . . . Allies Melted . | . . . . . . . . . . . . . . Intel | -11 -10 -10 -9 -8 -7 -7 -7 -7 -6 -6 -6 -6 -6 ------- Run | Yrd Mat Min Mat Mat Fac Low Low Dat Pro Fac Was Fac Low Robot Analysis Total . | . . . . . . . . . . . . . . Derelict Logs Recovered 2 | . . 1 . . . . . . 1 . . . . Drone Launches . | . . . . . . . . . . . . . . Drone Recoveries . | . . . . . . . . . . . . . . Exploration | -11 -10 -10 -9 -8 -7 -7 -7 -7 -6 -6 -6 -6 -6 ------------- Run | Yrd Mat Min Mat Mat Fac Low Low Dat Pro Fac Was Fac Low Turns Passed 8620 | 39 401 455 2295 980 1966 609 420 97 530 288 216 300 24 Spaces Moved 6600 | 66 413 649 1660 614 1078 436 335 84 356 136 199 526 48 Core 1490 | 66 390 295 1 . . . . . . . 164 526 48 Treads 59 | . 5 15 . . . . . . . 4 35 . . Legs 843 | . 18 . 825 . . . . . . . . . . Wheels 3572 | . . . 537 614 1078 436 335 84 356 132 . . . Hover . | . . . . . . . . . . . . . . Flight 636 | . . 339 297 . . . . . . . . . . Fastest Speed 34 | 50 50 37 34 120 120 116 116 116 116 145 50 50 50 Average Speed 100 | 50 54 45 110 120 127 118 116 116 131 172 82 50 50 Slowest Speed 235 | 50 160 160 150 120 190 145 116 116 160 235 235 50 50 Overloaded Moves . | . . . . . . . . . . . . . . Propulsion Burnouts . | . . . . . . . . . . . . . . Robots Hopped 10 | . . 9 1 . . . . . . . . . . Cave-ins Triggered . | . . . . . . . . . . . . . . Exploration Rate (%) 47 | 3 43 96 73 34 22 61 61 71 72 6 98 16 8 Regions Visited 13 Branch Regions 6 Pre-discovered Areas 1 | . . . . . . . . 1 . . . . . Known Exits Taken 5 | . 1 1 1 1 . . . . . . . 1 . Unknown Exits Taken 6 | 1 . . . . 1 1 1 1 1 . . . . Scrap Searched 5 | . . 1 . . . 2 1 . 1 . . . . Spaces Dug 14 | . . . . . 9 . . . . 5 . . . Terrain Destroyed 412 | . . . 33 23 159 4 16 . 1 64 112 . . Melee 14 | . . . . . 9 . . . . 5 . . . Projectile 7 | . . . 3 . 2 . . . 1 1 . . . AOE 391 | . . . 30 23 148 4 16 . . 58 112 . . Terrain Rammed . | . . . . . . . . . . . . . . Walls Destroyed . | . . . . . . . . . . . . . . Machines Disabled . | . . . . . . . . . . . . . . Actions | -11 -10 -10 -9 -8 -7 -7 -7 -7 -6 -6 -6 -6 -6 --------- Run | Yrd Mat Min Mat Mat Fac Low Low Dat Pro Fac Was Fac Low Total 8036 | 70 551 795 1984 787 1525 497 351 83 389 166 228 562 48 Wait 799 | . 97 137 136 104 250 22 . . 3 . 13 37 . Move 6569 | 65 412 631 1657 613 1077 435 334 83 355 136 198 525 48 Hop 9 | . . 8 1 . . . . . . . . . . Pick Up 105 | 4 . 4 44 8 29 6 2 . 4 3 1 . . Fast Attach 36 | 1 4 5 12 2 5 2 . . 1 3 1 . . Attach 51 | . 2 . 6 7 19 8 . . 6 3 . . . Detach 20 | . 1 . 5 2 5 3 . . . 3 1 . . Swap 58 | . 1 1 9 8 24 3 2 . 6 1 3 . . Drop 75 | . . 7 34 8 19 1 1 . 1 3 1 . . Fire 281 | . 33 1 78 35 73 17 12 . 13 9 10 . . Melee 21 | . . . . . 16 . . . . 5 . . . Ram 1 | . 1 . . . . . . . . . . . . Kick 2 | . . . 2 . . . . . . . . . . Crush 1 | . . 1 . . . . . . . . . . . Escape Stasis 8 | . . . . . 8 . . . . . . . . Rewire . | . . . . . . . . . . . . . . Trap . | . . . . . . . . . . . . . . Miscellaneous . | . . . . . . . . . . . . . . Route ------- -11/Scrapyard -10/Materials (discovered 2 exits: *Min x2) -10/Mines (discovered 2 exits: *Mat x2) -9/Materials (discovered 3 exits: *Mat x2 / *Min) -8/Materials (discovered 2 exits: *Fac / *Sto) -7/Factory (discovered 2 exits: [*Low x2]) -7/Lower Caves -7/Lower Caves -7/Data Miner -6/Proximity Caves -6/Factory (discovered 3 exits: Fac / *Low / Ext) -6/Waste -6/Factory -6/Lower Caves History --------- Turn | Location | Event 7 | -11/Scrapyard | Discovered new exit (range 16) 40 | -11/Scrapyard | Entered Materials 299 | -10/Materials | Discovered new exit (range 11) 316 | -10/Materials | Discovered new exit (range 5) 329 | -10/Materials | Build established: Mutant 440 | -10/Materials | Identified exit to Mines 441 | -10/Materials | Entered Mines 447 | -10/Mines | Received a Mining Laser from a helpful Derelict 447 | -10/Mines | Discovered new exit (range 5) 451 | -10/Mines | Identified exit to Materials 495 | -10/Mines | Discovered exit to Materials (range 15) 896 | -10/Mines | Entered Materials 896 | -9/Materials | Accompanied by 2 allies 896 | -9/Materials | Evolved 2 slots: Propulsion x1, Utility x1 897 | -9/Materials | Identified exit to Mines 901 | -9/Materials | Led the pair of lost Derelicts to an unsafe place 939 | -9/Materials | Build established: Scavenger-Mutant 1088 | -9/Materials | Destroyed 7 combat bots 1381 | -9/Materials | Build established: Mutant 2074 | -9/Materials | Core integrity fell below 50% 2516 | -9/Materials | Discovered new exit (range 4) 3188 | -9/Materials | Discovered new exit (range 3) 3190 | -9/Materials | Identified exit to Materials 3191 | -9/Materials | Entered another Materials area 3191 | -8/Materials | Evolved 2 slots: Utility x2 3205 | -8/Materials | Discovered new exit (range 16) 3222 | -8/Materials | Identified exit to Storage 3354 | -8/Materials | Discovered new exit (range 15) 3410 | -8/Materials | Identified exit to Factory 4171 | -8/Materials | Entered Factory 4171 | -7/Factory | Evolved 2 slots: Utility x2 4571 | -7/Factory | Search patrols dispatched 4939 | -7/Factory | Discovered new exit (range 15) 4971 | -7/Factory | Search patrols dispatched 5054 | -7/Factory | Lost 3 parts (2n1w) 5789 | -7/Factory | Lost 5 parts (2n3u) 6056 | -7/Factory | Discovered new exit (range 8) 6137 | -7/Factory | Entered Lower Caves 6140 | -7/Lower Caves | Core integrity fell below 50% 6346 | -7/Lower Caves | Attracted the attention of an 0b10 checkpoint 6597 | -7/Lower Caves | Build established: Scavenger-Skirmisher 6729 | -7/Lower Caves | Discovered new exit (range 16) 6746 | -7/Lower Caves | Entered another Lower Caves area 7039 | -7/Lower Caves | Discovered new exit (range 16) 7166 | -7/Lower Caves | Entered Data Miner 7166 | -7/Data Miner | Discovered new exit (range 6) 7189 | -7/Data Miner | Met Data Miner 7216 | -7/Data Miner | Learned location of Section 7 (-2) 7216 | -7/Data Miner | Acquired the access code to Warlord's prototype stash 7237 | -7/Data Miner | Received God Mode back door access code from Data Miner 7263 | -7/Data Miner | Entered Proximity Caves 7291 | -6/Proximity Caves | Escorted by Enhanced Grunt 7393 | -6/Proximity Caves | Spotted B-75 Beast 7417 | -6/Proximity Caves | Core integrity fell below 20% 7418 | -6/Proximity Caves | Destroyed B-75 Beast 7444 | -6/Proximity Caves | Lost 3 parts (1p1n1w) 7592 | -6/Proximity Caves | Build established: Scavenger-Mutant 7776 | -6/Proximity Caves | Discovered new exit (range 9) 7789 | -6/Proximity Caves | Learned 12 Factory zone layouts 7793 | -6/Proximity Caves | Entered Factory 7793 | -6/Factory | Accompanied by 1 ally 7793 | -6/Factory | Evolved 2 slots: Propulsion x1, Weapon x1 7794 | -6/Factory | Identified exit to Extension 7794 | -6/Factory | Identified exit to Factory 7794 | -6/Factory | Identified exit to Lower Caves 8081 | -6/Factory | Sucked down chute 8081 | -6/Factory | Entered Waste 8086 | -6/Waste | 1 allies followed down the chute 8096 | -6/Waste | EMP discharged 8129 | -6/Waste | Spotted C-40 Crusher 8140 | -6/Waste | Destroyed C-40 Crusher 8156 | -6/Waste | Spotted C-40 Crusher 8158 | -6/Waste | Destroyed C-40 Crusher 8169 | -6/Waste | Spotted C-40 Crusher 8171 | -6/Waste | Spotted C-40 Crusher 8176 | -6/Waste | Destroyed C-40 Crusher 8195 | -6/Waste | Crushed by Compactor (1 part destroyed, 2 dropped) 8196 | -6/Waste | EMP discharged 8196 | -6/Waste | System corruption reached 10% 8198 | -6/Waste | Crushed by Compactor (1 part destroyed, 1 dropped) 8202 | -6/Waste | Crushed by Compactor (1 part destroyed, 2 dropped) 8203 | -6/Waste | Released all parts (6) 8207 | -6/Waste | Spotted C-40 Crusher 8233 | -6/Waste | Lost 4 parts (1p1n1u1w) 8246 | -6/Waste | Spotted C-40 Crusher 8289 | -6/Waste | Discovered new exit (range 12) 8296 | -6/Waste | EMP discharged 8297 | -6/Waste | Entered Factory 8346 | -6/Factory | Discovered exit to Lower Caves (range 8) 8472 | -6/Factory | Spotted B-75 Beast 8509 | -6/Factory | Build established: Mutant 8524 | -6/Factory | Core integrity fell below 50% 8584 | -6/Factory | Core integrity fell below 20% 8597 | -6/Factory | Entered Lower Caves 8621 | -6/Lower Caves | Destroyed by S-27 Virus with Autogun Last Messages --------------- 08473_ Connecting with Fabricator... 08486_ 0PGJBA =H3WO Map ----- +----------------------------------------------------+ | ?????????????????????????????????????????????????? | | ??????????????????????????????????????####???????? | | ?????????????????????????????????????## ##??????? | | ?????????????????????????????????????# #??????? | | ?????????????????????????????????????# ##??????? | | ??????????????????????????????????#### ##??????? | | ??????????????????????????????????# ## ##?????? | | ??????????????????????????????????# #?????? | | ????????????????????????????????### #?????? | | ????????????????????????????????# ##?????? | | ????????????????????????????????# ##?????? | | ????????????????????????????????# #?????? | | ????????????????????????????????# #?????? | | ???????????????????????????????## #?????? | | ????????????????## ?##???????### #?????? | | ??????????????### # ###?#### ##?????? | | ????????????? ## ##??????? | | ????????????????# s#### #???????? | | ?????????????????# ## ##??# #??????? | | ???????????????????????# s##???# #??????? | | ???????????????????????# s#### ## #?????? | | ???????????????????????## ### #?????? | | ????????????????????????## ##?????? | | ?????????????????????????# #### #??????? | | ????????????????????????## #??## ## #??????? | | ????????????????????????#@ #???# #? #??????? | | ??????????????????????? ##??? ? # #??????? | | ????????????????????? ##???? ???? ##??????? | | ??????????????????? #???? ????? #???????? | | ?????????????????# #???? ?????? ???????? | | ?????????????????# ????? ?????? ???????? | | ?????????????????# ????? ????????????????? | | ?????????????????# ??????????????????????? | | ?????????????????# #####??????????????????????? | | ?????????????????# ???????????????????????????? | | ?????????????????# #???????????????????????????? | | ?????????????????# ????????????????????????????? | | ?????????????????# ?????????????????????????????? | | ??????????????????##?????????????????????????????? | | ?????????????????????????????????????????????????? | | ?????????????????????????????????????????????????? | | ?????????????????????????????????????????????????? | | ?????????????????????????????????????????????????? | | ?????????????????????????????????????????????????? | | ?????????????????????????????????????????????????? | | ?????????????????????????????????????????????????? | | ?????????????????????????????????????????????????? | | ?????????????????????????????????????????????????? | | ?????????????????????????????????????????????????? | | ?????????????????????????????????????????????????? | +----------------------------------------------------+ Best States ------------- Heat Dissipation 62 Coolant Potential 65 Energy Generation 16 Energy Capacity 290 Matter Stores 300 Matter Capacity 300 Sight Range 16 Robot Scan Range 15 Terrain Scan Range 14 Terrain Scan Density 85 Jamming Range 12 EM Shielding 4 Armor Coverage 225 Weapon Cycling 15 Evasion (%) 63 Targeting Accuracy 12 Core Analysis 6 Recoil Reduction 3 Item Schematics ----------------- Imp. EM Shotgun | -9/Materials | Scanalyzed Mni. Grenade Launcher | -9/Materials | Scanalyzed Com. Wheel | -9/Materials | Extracted Power Shielding | -9/Materials | Extracted Missile Launcher | -7/Factory | Scanalyzed Combat Drone Bay | -7/Data Miner | Free Lgt. Regenerative Plating | -7/Data Miner | Free Cld. Aerolev Unit | -7/Data Miner | Free Thermal Defense Suite | -7/Data Miner | Free Force Rifle | -7/Data Miner | Free Antigrav System | -7/Data Miner | Free Adv. System Shield | -7/Data Miner | Free Enh. Gauss Cannon | -7/Data Miner | Free Fission Core | -7/Data Miner | Free Hyp. Gauss Cannon | -7/Data Miner | Free Imp. Arc Projector | -7/Data Miner | Free Quantum Capacitor | -7/Data Miner | Free Imp. Cloaking Device | -7/Data Miner | Free Robot Schematics ------------------ G-50 Soldier | -7/Data Miner | Free L-41 Fighter | -7/Data Miner | Free B-48 Gladiator | -7/Data Miner | Free A-15 Conveyor | -7/Data Miner | Free B-60 Warrior | -7/Data Miner | Free H-66 Slayer | -7/Data Miner | Free S-27 Virus | -7/Data Miner | Free Fabricated ------------ Nothing Alien Tech Used ----------------- None Achievements -------------- None Challenges ------------ None Game ------ Seed FrostArmorFalx Manual? 0 Play Time 01:33:13 Cumulative 48.4 hours Start 2025.03.04 @ 14:32:14 End 2025.03.05 @ 19:48:59 Sessions 3 Manual Loads 0 Difficulty Rogue Special Mode None Game No. 57 Rogue 57 Adventurer 0 Explorer 0 Win Type - Total 0 Types 0/0/0/0/0/0/0/0/0 Lore% 32 Gallery% 39 Achievement% 31 Wizard Run 0 Options --------- Layout 0 ASCII 0 Keyboard 1 Movement Numpad Keybinds 0 Fullscreen 1 Font 18/SmallcapsGlow Map View 76x50 Zoom Use 0% Tactical HUD 1 Map Filters NONE Filters NONE Steam 1 RUN: 1f0e0428-f928-4557-aff1-4e1349041a38